fUST/lending_fUST_20251020
["ID","MTS","AMOUNT","RATE_DAILY","PERIOD"]
[391890956,1760958135862,1757.41414208,0.00024141,2]
[391890957,1760958135895,3242.58585792,0.00024141,2]
[391890958,1760958182858,4617.75,0.00024141,2]
[391890960,1760958203397,150.0,0.0002013,2]
[391890961,1760958203865,150.0,0.00021089,2]
[391890962,1760958204330,182.65,0.00022047,2]
[391890963,1760958204743,243.54,0.00023006,2]
[391890964,1760958205177,304.42,0.00023964,2]
[391890968,1760958209329,300.0,0.000241,2]
[391890969,1760958220332,300.0,0.000241,2]
[391890971,1760958280685,150.0,0.00020642,2]
[391890972,1760958281127,150.0,0.00021625,2]
[391890973,1760958281563,166.21,0.00022608,2]
[391890974,1760958281938,42.85414208,0.00024141,2]
[391890975,1760958281960,4112.60605761,0.00024141,2]
[391890976,1760958281987,221.62,0.00023591,2]
[391890980,1760958357811,150.0,0.00020701,2]
[391890981,1760958358211,150.0,0.00021687,2]
[391890982,1760958358629,150.0,0.00022673,2]
[391890983,1760958359078,186.6,0.00023659,2]
[391890986,1760958428193,264.94433982,0.0002588,120]
[391890987,1760958434481,150.0,0.00020624,2]
[391890988,1760958434924,150.0,0.00021606,2]
[391890989,1760958435346,150.0,0.00022588,2]
[391890990,1760958435966,154.19,0.0002357,2]
[391890998,1760958479849,184.69,0.00016983,2]
[391890999,1760958480112,184.69,0.00016983,2]
[391891000,1760958480373,184.67,0.00016983,2]
[391891012,1760958509975,150.0,0.00020455,2]
[391891013,1760958510422,150.0,0.00021429,2]
[391891014,1760958510906,150.0,0.00022403,2]
[391891015,1760958511390,150.0,0.00023377,2]
[391891031,1760958582926,150.0,0.00020651,2]
[391891034,1760958583356,150.0,0.00021634,2]
[391891035,1760958583787,150.0,0.00022618,2]
[391891036,1760958584271,150.0,0.00023601,2]
[391891038,1760958610872,635.0,0.00024,4]
[391891049,1760958631642,-158.25,0.000244,30]
[391891050,1760958631651,-150.0,0.000244,2]
[391891051,1760958631660,-633.58338267,0.000244,2]
[391891052,1760958631669,-150.0,0.00024584,2]
[391891053,1760958631678,-200.0,0.00024699,2]
[391891054,1760958631688,-1000.0,0.000248,2]
[391891055,1760958631697,-1000.0,0.000248,3]
[391891056,1760958631707,-1000.0,0.000248,4]
[391891057,1760958631716,-480.0,0.00024972,2]
[391891058,1760958631725,-300.0,0.00024972,2]
[391891059,1760958631736,-1200.0,0.00024972,2]
[391891061,1760958631745,-500.0,0.00024973,2]
[391891063,1760958631754,-400.17946326,0.00024973,2]
[391891065,1760958631763,-530.31561982,0.00024973,2]
[391891067,1760958631774,-500.0,0.00024973,2]
[391891069,1760958631783,-500.0,0.00024973,2]
[391891070,1760958631793,-522.95357546,0.00024973,2]
[391891073,1760958631803,-500.0,0.00024973,2]
[391891075,1760958631812,-500.0,0.00024973,2]
[391891077,1760958631821,-500.0,0.00024973,2]
[391891079,1760958631831,-500.0,0.00024973,2]
[391891080,1760958631840,-343.29286625,0.00024973,2]
[391891082,1760958631849,-502.61773981,0.00024973,2]
[391891084,1760958631859,-183.46701701,0.00024973,2]
[391891086,1760958631868,-503.6411007,0.00024973,2]
[391891088,1760958631877,-10332.77518402,0.0002498,2]
[391891091,1760958631889,-532.2618713,0.0002498,2]
[391891094,1760958631911,-555.11056296,0.0002498,2]
[391891119,1760958637793,-1000.0,0.000248,5]
[391891120,1760958637803,-16278.51768862,0.0002498,2]
[391891121,1760958637814,-163.3054755,0.00025,2]
[391891122,1760958637825,-1000.0,0.00025521,2]
[391891123,1760958637835,-572.23703141,0.00025521,2]
[391891124,1760958637844,-1000.0,0.00025521,2]
[391891125,1760958637854,-1000.0,0.00025521,2]
[391891126,1760958637864,-1000.0,0.00025521,2]
[391891127,1760958637873,-1000.0,0.00025521,2]
[391891128,1760958637883,-327.3424488,0.00025521,2]
[391891129,1760958637892,-150.0,0.00025568,2]
[391891130,1760958637902,-1395.5147556,0.0002578,2]
[391891131,1760958637911,-1292.82,0.0002579,2]
[391891132,1760958637921,-1318.12,0.0002587,3]
[391891133,1760958637930,-659.06,0.0002587,3]
[391891134,1760958637939,-329.53,0.0002587,3]
[391891135,1760958637949,-164.77,0.0002587,3]
[391891136,1760958637962,-494.32,0.0002587,3]
[391891137,1760958637972,-163.14,0.0002587,10]
[391891138,1760958637982,-27698.6653069,0.0002587,2]
[391891139,1760958637993,-379.77643342,0.00025873,2]
[391891141,1760958638003,-500.0,0.00025873,2]
[391891143,1760958638014,-511.79615359,0.00025873,2]
[391891144,1760958638025,-500.0,0.00025873,2]
[391891145,1760958638037,-500.0,0.00025873,2]
[391891146,1760958638047,-500.81976336,0.00025873,2]
[391891147,1760958638058,-500.0,0.00025873,2]
[391891148,1760958638068,-501.37341469,0.00025873,2]
[391891149,1760958638079,-500.0,0.00025873,2]
[391891150,1760958638090,-160.05670856,0.00025873,2]
[391891151,1760958638100,-500.37546093,0.00025873,2]
[391891152,1760958638111,-500.0,0.00025873,2]
[391891153,1760958638123,-160.05671649,0.00025873,2]
[391891154,1760958638134,-168.05889343,0.00025873,2]
[391891155,1760958638144,-158.45552761,0.00025873,2]
[391891156,1760958638156,-160.05607709,0.00025873,2]
[391891157,1760958638168,-500.0,0.00025873,2]
[391891158,1760958638179,-150.0,0.00025873,2]
[391891159,1760958638189,-500.0,0.00025873,2]
[391891160,1760958638200,-618.59421136,0.00025873,2]
[391891161,1760958638211,-500.0,0.00025873,2]
[391891162,1760958638222,-505.07238587,0.00025873,2]
[391891163,1760958638234,-500.0,0.00025873,2]
[391891164,1760958638245,-200.95345942,0.00025873,2]
[391891165,1760958638255,-505.30308015,0.00025873,2]
[391891166,1760958638266,-500.0,0.00025873,2]
[391891167,1760958638277,-500.0,0.00025873,2]
[391891168,1760958638287,-500.0,0.00025873,2]
[391891169,1760958638298,-500.0,0.00025873,2]
[391891170,1760958638309,-500.0,0.00025873,2]
[391891171,1760958638320,-500.0,0.00025873,2]
[391891172,1760958638331,-199.0,0.0002588,7]
[391891173,1760958638342,-500.0,0.0002588,5]
[391891174,1760958638353,-97514.81905076,0.0002588,2]
[391891175,1760958638367,-1111.1,0.0002588,2]
[391891176,1760958638397,-6926.68721559,0.0002588,2]
[391891177,1760958638410,-3796.899449,0.0002588,2]
[391891178,1760958638422,-84541.15143365,0.0002588,2]
[391891179,1760958638432,-385.72375674,0.00025889,2]
[391891180,1760958638444,-9.51835075,0.00025889,2]
[391891181,1760958638453,-192.44793774,0.00025889,2]
[391891182,1760958638464,-4065.29719578,0.0002589,2]
[391891183,1760958638476,-1036.42,0.0002589,2]
[391891184,1760958638487,-364898.28280422,0.0002589,2]
[391891185,1760958638497,-500.0,0.0002589,2]
[391891186,1760958638507,-18579.23,0.000259,7]
[391891187,1760958638518,-402.9601108,0.000259,7]
[391891188,1760958638527,-500.0,0.00025973,2]
[391891189,1760958638537,-150.0,0.00025989,2]
[391891190,1760958638547,-300.0,0.00025989,5]
[391891191,1760958638557,-450.0,0.00025989,8]
[391891192,1760958638566,-600.0,0.00025989,11]
[391891193,1760958638576,-750.0,0.00025989,14]
[391891194,1760958638586,-900.0,0.00025989,17]
[391891195,1760958638595,-1050.0,0.00025989,20]
[391891196,1760958638605,-100000.0,0.0002599,2]
[391891197,1760958638614,-300.0,0.0002601,2]
[391891198,1760958638623,-361.0,0.00026022,2]
[391891199,1760958638633,-1503.93912564,0.00026068,2]
[391891200,1760958638643,-761.40251625,0.00026068,2]
[391891201,1760958638652,-1500.0,0.00026068,2]
[391891202,1760958638661,-1522.05539574,0.00026068,2]
[391891203,1760958638671,-1500.0,0.00026068,2]
[391891204,1760958638680,-150.86007013,0.00026147,2]
[391891205,1760958638690,-199.0,0.00026153,8]
[391891206,1760958638700,-500.0,0.00026154,5]
[391891207,1760958638710,-500.0,0.00026164,2]
[391891208,1760958638719,-417.0,0.00026314,2]
[391891209,1760958638729,-1000.0,0.00026421,2]
[391891210,1760958638739,-1000.0,0.00026421,2]
[391891211,1760958638750,-293.16431153,0.00026421,2]
[391891212,1760958638760,-969.37199468,0.00026421,2]
[391891213,1760958638772,-1019.77062949,0.00026421,2]
[391891214,1760958638783,-1000.0,0.00026421,2]
[391891215,1760958638793,-1000.0,0.00026421,2]
[391891216,1760958638804,-1000.0,0.00026421,2]
[391891217,1760958638815,-515.34274103,0.00026421,2]
[391891218,1760958638826,-500.0,0.00026421,2]
[391891219,1760958638837,-1000.0,0.00026421,2]
[391891220,1760958638848,-199.0,0.00026427,9]
[391891221,1760958638858,-500.0,0.00026428,5]
[391891222,1760958638870,-500.0,0.00026438,2]
[391891223,1760958638881,-1000.0,0.00026521,2]
[391891224,1760958638893,-162.55,0.00026551,2]
[391891225,1760958638903,-498.0,0.00026573,2]
[391891226,1760958638913,-1456.65364387,0.00026616,2]
[391891227,1760958638923,-2000.0,0.00026616,2]
[391891228,1760958638934,-199.0,0.00026701,10]
[391891229,1760958638944,-500.0,0.00026702,5]
[391891230,1760958638954,-500.0,0.00026712,2]
[391891231,1760958638966,-1200.0,0.00026862,23]
[391891232,1760958638977,-1350.0,0.00026872,26]
[391891233,1760958638988,-1500.0,0.00026889,29]
[391891234,1760958639001,-1650.0,0.00026889,32]
[391891235,1760958639013,-635.64,0.00026889,35]
[391891236,1760958639027,-160.0,0.00026889,2]
[391891237,1760958639039,-229.290509,0.000269,20]
[391891238,1760958639049,-212.10558,0.000269,20]
[391891239,1760958639059,-500.0,0.000269,2]
[391891240,1760958639070,-500.0,0.000269,2]
[391891241,1760958639082,-500.0,0.000269,2]
[391891242,1760958639093,-158.10768188,0.000269,2]
[391891243,1760958639104,-1500.0,0.00026968,2]
[391891244,1760958639115,-1500.0,0.00026968,2]
[391891245,1760958639126,-1500.0,0.00026968,2]
[391891246,1760958639137,-1500.0,0.00026968,2]
[391891247,1760958639149,-1515.02448864,0.00026968,2]
[391891248,1760958639161,-1500.0,0.00026968,2]
[391891249,1760958639172,-199.0,0.00026975,11]
[391891251,1760958639182,-500.0,0.00026976,5]
[391891252,1760958639193,-500.0,0.00026986,2]
[391891253,1760958639205,-1000.0,0.00027,3]
[391891254,1760958639215,-13277.19444917,0.00027,3]
[391891255,1760958639226,-420.0,0.00027053,2]
[391891256,1760958639238,-1500.0,0.00027068,2]
[391891257,1760958639249,-1680.0,0.00027176,2]
[391891258,1760958639260,-2636.24,0.0002724,3]
[391891259,1760958639270,-1318.12,0.0002724,3]
[391891260,1760958639281,-659.06,0.0002724,3]
[391891261,1760958639292,-329.54,0.0002724,3]
[391891262,1760958639303,-199.0,0.00027249,12]
[391891263,1760958639315,-500.0,0.0002725,5]
[391891264,1760958639324,-500.0,0.0002726,2]
[391891265,1760958639334,-1395.51475557,0.00027285,2]
[391891266,1760958639344,-18579.23,0.000273,7]
[391891267,1760958639354,-260.0,0.00027437,2]
[391891268,1760958639363,-410.62875183,0.00027448,5]
[391891269,1760958639373,-174.55050883,0.00027448,5]
[391891270,1760958639382,-514.52470429,0.00027448,5]
[391891271,1760958639392,-2941.84,0.000275,2]
[391891272,1760958639402,-2000.0,0.00027516,5]
[391891273,1760958639412,-2000.0,0.00027516,5]
[391891274,1760958639422,-901.58133939,0.00027516,5]
[391891275,1760958639432,-2000.0,0.00027516,5]
[391891276,1760958639442,-1290.63311626,0.00027516,5]
[391891277,1760958639452,-199.0,0.00027523,13]
[391891278,1760958639462,-500.0,0.00027524,15]
[391891279,1760958639472,-500.0,0.00027534,2]
[391891280,1760958639483,-185.77,0.00027535,2]
[391891281,1760958639494,-1524.87285329,0.00027616,5]
[391891282,1760958639507,-229.290509,0.00027769,20]
[391891283,1760958639518,-212.10558,0.00027769,20]
[391891284,1760958639528,-199.0,0.00027797,14]
[391891285,1760958639642,-500.0,0.00027798,15]
[391891286,1760958639672,-500.0,0.00027808,2]
[391891287,1760958639682,-823.16008469,0.00027851,2]
[391891288,1760958639691,-500.0,0.00027921,3]
[391891289,1760958639701,-151.0,0.00027921,2]
[391891290,1760958639710,-151.0,0.00027921,3]
[391891291,1760958639720,-154.48274439,0.00027921,2]
[391891292,1760958639730,-500.0,0.00027921,3]
[391891293,1760958639739,-500.0,0.00027921,3]
[391891294,1760958639749,-500.0,0.00027976,3]
[391891295,1760958639758,-245.35055886,0.00027976,3]
[391891296,1760958639768,-500.0,0.00027976,3]
[391891297,1760958639778,-500.0,0.00027976,3]
[391891298,1760958639787,-420.0,0.00027985,2]
[391891299,1760958639797,-500.0,0.00028031,3]
[391891300,1760958639807,-500.0,0.00028031,3]
[391891301,1760958639817,-500.0,0.00028031,3]
[391891302,1760958639827,-2500.0,0.00028064,5]
[391891303,1760958639838,-2515.50384054,0.00028064,5]
[391891304,1760958639848,-2500.0,0.00028064,5]
[391891305,1760958639858,-199.0,0.00028071,15]
[391891306,1760958639868,-500.0,0.00028072,15]
[391891307,1760958639878,-500.0,0.00028085,3]
[391891308,1760958639888,-500.0,0.00028085,3]
[391891309,1760958639898,-500.0,0.00028085,3]
[391891310,1760958639908,-151.0,0.0002814,3]
[391891311,1760958639918,-500.0,0.0002814,3]
[391891313,1760958639927,-277.90927765,0.0002814,3]
[391891315,1760958639936,-151.0,0.0002814,3]
[391891317,1760958639946,-606.51114859,0.0002814,3]
[391891319,1760958639955,-500.0,0.0002814,3]
[391891321,1760958639965,-500.0,0.0002814,3]
[391891324,1760958639975,-151.0,0.00028195,3]
[391891326,1760958639985,-500.0,0.00028195,3]
[391891327,1760958639995,-159.25706955,0.00028195,3]
[391891329,1760958640005,-500.0,0.00028195,3]
[391891331,1760958640014,-500.0,0.00028195,3]
[391891333,1760958640024,-151.0,0.0002825,3]
[391891335,1760958640034,-500.0,0.0002825,3]
[391891337,1760958640043,-500.0,0.0002825,3]
[391891339,1760958640053,-500.0,0.0002825,3]
[391891341,1760958640062,-151.0,0.00028304,3]
[391891342,1760958640072,-500.0,0.00028304,3]
[391891343,1760958640081,-165.85092125,0.00028305,3]
[391891344,1760958640091,-500.0,0.00028305,3]
[391891345,1760958640101,-199.0,0.00028345,16]
[391891346,1760958640111,-543.5,0.00028346,15]
[391891347,1760958640121,-190.26783446,0.00028359,3]
[391891348,1760958640131,-349.85739787,0.00028359,3]
[391891349,1760958640141,-500.0,0.00028359,3]
[391891350,1760958640151,-500.0,0.00028414,3]
[391891351,1760958640164,-294.96080455,0.00028469,3]
[391891352,1760958640174,-208.99,0.00028518,2]
[391891353,1760958640185,-3000.0,0.00028612,5]
[391891354,1760958640195,-3000.0,0.00028612,5]
[391891355,1760958640207,-229.290509,0.00028638,20]
[391891356,1760958640217,-212.10558,0.00028638,20]
[391891357,1760958640227,-1395.51475557,0.0002879,2]
[391891358,1760958640239,-1849.0,0.00029004,2]
[391891359,1760958640249,-500.0,0.00029004,2]
[391891360,1760958640259,-586.0,0.00029004,2]
[391891361,1760958640269,-1849.0,0.00029059,2]
[391891362,1760958640279,-500.0,0.00029059,2]
[391891363,1760958640288,-586.0,0.00029059,2]
[391891364,1760958640299,-150.0,0.00029109,5]
[391891365,1760958640308,-1849.0,0.00029114,2]
[391891366,1760958640319,-500.0,0.00029114,2]
[391891367,1760958640328,-586.0,0.00029114,2]
[391891368,1760958640338,-161.57387509,0.00029135,5]
[391891369,1760958640348,-2500.0,0.0002916,5]
[391891370,1760958640359,-3500.0,0.0002916,5]
[391891371,1760958640369,-1849.0,0.00029168,2]
[391891372,1760958640379,-500.0,0.00029168,2]
[391891373,1760958640388,-586.0,0.00029168,2]
[391891374,1760958640399,-1849.0,0.00029223,2]
[391891375,1760958640409,-500.0,0.00029223,2]
[391891376,1760958640419,-586.0,0.00029223,2]
[391891377,1760958640428,-1849.0,0.00029278,2]
[391891378,1760958640438,-314.6905873,0.00029278,2]
[391891379,1760958640448,-586.0,0.00029278,2]
[391891380,1760958640459,-587.0,0.00029309,2]
[391891381,1760958640469,-1849.0,0.00029333,2]
[391891382,1760958640479,-586.0,0.00029333,2]
[391891383,1760958640489,-160.09153937,0.00029373,5]
[391891384,1760958640500,-160.05607692,0.00029373,2]
[391891385,1760958640511,-158.05537951,0.00029373,5]
[391891386,1760958640522,-500.0,0.00029373,5]
[391891387,1760958640532,-500.0,0.00029373,5]
[391891388,1760958640542,-160.05671649,0.00029373,5]
[391891389,1760958640551,-158.45551666,0.00029373,5]
[391891390,1760958640560,-500.0,0.00029373,5]
[391891391,1760958640570,-1849.0,0.00029388,2]
[391891392,1760958640579,-586.0,0.00029388,2]
[391891393,1760958640589,-2941.84,0.000294,2]
[391891394,1760958640597,-18579.23,0.000294,7]
[391891395,1760958640606,-5000.0,0.00029434,2]
[391891396,1760958640615,-1849.0,0.00029442,2]
[391891397,1760958640624,-586.0,0.00029442,2]
[391891398,1760958640633,-1849.0,0.00029497,2]
[391891399,1760958640643,-586.0,0.00029497,2]
[391891400,1760958640652,-232.22,0.00029501,2]
[391891401,1760958640661,-229.290509,0.00029507,20]
[391891402,1760958640670,-212.10558,0.00029507,20]
[391891403,1760958640679,-1849.0,0.00029552,2]
[391891404,1760958640688,-586.0,0.00029552,2]
[391891405,1760958640697,-1631.0,0.00029575,2]
[391891406,1760958640706,-229.290509,0.000296,2]
[391891407,1760958640717,-212.10558,0.000296,2]
[391891408,1760958640726,-1849.0,0.00029607,2]
[391891409,1760958640736,-250.0,0.00029657,5]
[391891410,1760958640744,-1849.0,0.00029662,2]
[391891411,1760958640754,-3000.0,0.000297,2]
[391891412,1760958640765,-4000.0,0.00029708,5]
[391891413,1760958640774,-3000.0,0.0002971,2]
[391891414,1760958640785,-1849.0,0.00029716,2]
[391891415,1760958640794,-3000.0,0.0002972,2]
[391891416,1760958640803,-3000.0,0.0002973,2]
[391891417,1760958640813,-3000.0,0.0002974,2]
[391891418,1760958640823,-3000.0,0.0002975,2]
[391891419,1760958640832,-3000.0,0.0002976,2]
[391891420,1760958640841,-159.97751647,0.00029769,7]
[391891421,1760958640852,-3000.0,0.0002977,2]
[391891422,1760958640861,-1849.0,0.00029771,2]
[391891423,1760958640870,-3000.0,0.0002978,2]
[391891424,1760958640879,-3000.0,0.0002979,2]
[391891425,1760958640889,-3000.0,0.000298,2]
[391891426,1760958640898,-3000.0,0.0002981,2]
[391891427,1760958640907,-3000.0,0.0002982,2]
[391891428,1760958640917,-1849.0,0.00029826,2]
[391891429,1760958640930,-3000.0,0.0002983,2]
[391891430,1760958640939,-3000.0,0.0002984,2]
[391891431,1760958640948,-3000.0,0.0002985,2]
[391891432,1760958640959,-3975.989749,0.0002986,2]
[391891433,1760958640968,-1849.0,0.00029881,2]
[391891434,1760958640976,-933.28505328,0.00029921,5]
[391891435,1760958640986,-504.55243322,0.00029921,5]
[391891436,1760958640995,-1849.0,0.00029936,2]
[391891437,1760958641005,-1849.0,0.0002999,2]
[391891438,1760958641015,-1000.0,0.0003,4]
[391891439,1760958641025,-229.290509,0.0003,15]
[391891440,1760958641035,-212.10558,0.0003,15]
[391891441,1760958641045,-1849.0,0.00030045,2]
[391891442,1760958641054,-1849.0,0.000301,2]
[391891443,1760958641064,-151.0,0.000301,15]
[391891444,1760958641073,-1849.0,0.00030155,2]
[391891445,1760958641084,-350.0,0.00030205,5]
[391891446,1760958641094,-1849.0,0.00030209,2]
[391891447,1760958641103,-4500.0,0.00030256,5]
[391891448,1760958641112,-1862.55018946,0.00030264,2]
[391891449,1760958641122,-1395.51475557,0.00030295,2]
[391891450,1760958641133,-333.40032642,0.00030344,5]
[391891451,1760958641142,-229.290509,0.00030376,20]
[391891452,1760958641152,-212.10558,0.00030376,20]
[391891453,1760958641167,-190.47328908,0.00030613,2]
[391891454,1760958641176,-334.90022006,0.00030631,2]
[391891455,1760958641185,-5000.0,0.00030804,5]
[391891456,1760958641195,-177.60905158,0.00031,120]
[391891457,1760958641205,-227.74523404,0.00031,120]
[391891458,1760958641215,-198.7963364,0.00031,120]
[391891459,1760958641225,-164.42682939,0.00031,120]
[391891460,1760958641236,-229.290509,0.00031038,15]
[391891461,1760958641246,-212.10558,0.00031038,15]
[391891462,1760958641255,-155.616829,0.0003104,2]
[391891463,1760958641264,-2941.84,0.000311,2]
[391891464,1760958641273,-18579.23,0.000311,7]
[391891465,1760958641282,-5500.0,0.00031352,5]
[391891466,1760958641292,-1432.24399238,0.00031692,2]
[391891467,1760958641301,-1000.0,0.00031715,4]
[391891468,1760958641310,-734.0,0.00031752,2]
[391891469,1760958641319,-1395.51475557,0.000318,2]
[391891470,1760958641329,-1432.24399238,0.00031852,2]
[391891471,1760958641338,-177.60905158,0.000319,120]
[391891472,1760958641347,-227.74523404,0.000319,120]
[391891473,1760958641357,-198.7963364,0.000319,120]
[391891474,1760958641367,-50896.0,0.000319,30]
[391891475,1760958641376,-500.0,0.000319,60]
[391891476,1760958641385,-151.0,0.000319,60]
[391891477,1760958641394,-151.0,0.000319,60]
[391891478,1760958641404,-500.0,0.000319,60]
[391891479,1760958641413,-151.0,0.000319,60]
[391891480,1760958641422,-500.0,0.000319,60]
[391891481,1760958641431,-500.0,0.000319,60]
[391891482,1760958641440,-500.0,0.000319,60]
[391891483,1760958641449,-305.36256827,0.000319,60]
[391891484,1760958641458,-151.0,0.000319,60]
[391891485,1760958641468,-500.0,0.000319,60]
[391891486,1760958641477,-229.290509,0.000319,2]
[391891487,1760958641486,-212.10558,0.000319,2]
[391891488,1760958641495,-6000.0,0.000319,5]
[391891489,1760958641504,-500.0,0.00031955,60]
[391891490,1760958641513,-151.0,0.00031955,60]
[391891491,1760958641523,-151.0,0.00031955,60]
[391891492,1760958641532,-500.0,0.00031955,60]
[391891493,1760958641541,-151.59120751,0.00031955,60]
[391891494,1760958641550,-500.0,0.00031955,60]
[391891495,1760958641559,-151.0,0.00031955,60]
[391891496,1760958641568,-500.0,0.00031955,60]
[391891497,1760958641577,-402.9601108,0.00032,30]
[391891498,1760958641586,-152.50400688,0.0003201,60]
[391891499,1760958641595,-151.0,0.0003201,60]
[391891500,1760958641604,-151.0,0.0003201,60]
[391891501,1760958641612,-500.0,0.0003201,60]
[391891502,1760958641621,-500.0,0.0003201,60]
[391891503,1760958641630,-151.0,0.0003201,60]
[391891504,1760958641639,-500.0,0.0003201,60]
[391891505,1760958641649,-151.0,0.00032064,60]
[391891506,1760958641658,-151.0,0.00032064,60]
[391891507,1760958641667,-500.0,0.00032064,60]
[391891508,1760958641676,-500.0,0.00032064,60]
[391891509,1760958641685,-151.0,0.00032064,60]
[391891510,1760958641695,-500.0,0.00032064,60]
[391891511,1760958641704,-229.290509,0.00032076,15]
[391891512,1760958641714,-212.10558,0.00032076,15]
[391891513,1760958641723,-411.0,0.00032118,2]
[391891514,1760958641732,-4204.0,0.00032118,2]
[391891515,1760958641741,-151.0,0.00032119,60]
[391891516,1760958641750,-151.0,0.00032119,60]
[391891517,1760958641760,-154.12276168,0.00032119,60]
[391891518,1760958641882,-152.89452512,0.00032119,60]
[391891519,1760958641892,-172.2861611,0.00032119,60]
[391891520,1760958641902,-500.0,0.00032119,60]
[391891521,1760958641911,-199.88629968,0.00032174,60]
[391891522,1760958641921,-152.27320854,0.00032174,60]
[391891523,1760958641931,-500.0,0.00032174,60]
[391891524,1760958641940,-153.71087954,0.00032229,60]
[391891525,1760958641950,-250.0,0.0003224,2]
[391891526,1760958641960,-1432.24399238,0.00032258,2]
[391891527,1760958641970,-151.0,0.000323,10]
[391891528,1760958641979,-282.39645235,0.00032364,2]
[391891529,1760958641989,-6500.0,0.00032448,5]
[391891530,1760958641999,-1432.24399238,0.00032575,2]
[391891531,1760958642009,-2941.84,0.000327,2]
[391891532,1760958642018,-18579.23,0.000327,7]
[391891533,1760958642029,-1432.24399238,0.00032718,2]
[391891534,1760958642039,-2999.0,0.00032876,120]
[391891535,1760958642049,-800.0,0.00032891,2]
[391891536,1760958642059,-177.60905158,0.000329,120]
[391891537,1760958642069,-227.74523404,0.000329,120]
[391891538,1760958642079,-198.7963364,0.000329,120]
[391891539,1760958642088,-151.0,0.000329,60]
[391891540,1760958642098,-151.0,0.000329,60]
[391891541,1760958642108,-213.3186526,0.000329,60]
[391891542,1760958642117,-151.37473815,0.000329,60]
[391891543,1760958642127,-500.0,0.000329,60]
[391891544,1760958642136,-500.0,0.000329,60]
[391891545,1760958642146,-151.0,0.000329,60]
[391891546,1760958642156,-500.0,0.000329,60]
[391891547,1760958642170,-500.0,0.000329,60]
[391891549,1760958642179,-151.0,0.000329,60]
[391891550,1760958642188,-500.0,0.000329,60]
[391891551,1760958642199,-500.0,0.000329,60]
[391891552,1760958642210,-500.0,0.000329,60]
[391891553,1760958642220,-151.0,0.000329,60]
[391891554,1760958642230,-151.0,0.000329,60]
[391891555,1760958642241,-151.0,0.000329,60]
[391891556,1760958642251,-272.99309488,0.000329,60]
[391891557,1760958642262,-101839.88599793,0.0003295,30]
[391891558,1760958642271,-151.0,0.00032955,60]
[391891559,1760958642281,-151.0,0.00032955,60]
[391891560,1760958642290,-500.0,0.00032955,60]
[391891561,1760958642300,-580.5971618,0.00032955,60]
[391891562,1760958642309,-151.0,0.00032955,60]
[391891563,1760958642318,-500.0,0.00032955,60]
[391891564,1760958642327,-500.0,0.00032955,60]
[391891565,1760958642338,-151.0,0.00032955,60]
[391891566,1760958642347,-500.0,0.00032955,60]
[391891567,1760958642357,-500.0,0.00032955,60]
[391891568,1760958642366,-560.46134789,0.00032955,60]
[391891569,1760958642375,-151.61557415,0.00032955,60]
[391891570,1760958642385,-151.0,0.00032955,60]
[391891571,1760958642395,-151.0,0.00032955,60]
[391891572,1760958642405,-1134.79067487,0.00032996,5]